[Event "Niedersachsen-ch B 2024"]
[Site "Verden Aller"]
[Date "2024.01.06"]
[Round "5.29"]
[White "Grunwald, Hannes Leon"]
[Black "Schoenfelder, Dennis Yoel"]
[Result "0-1"]
[ECO "B12"]
[WhiteElo "1517"]
[BlackElo "1370"]
[Annotator "NA RC"]
[PlyCount "64"]
[EventDate "2024.01.01"]
[EventType "swiss"]
[EventCountry "GER"]
[SourceTitle "playchess.com"]
[Source "ChessBase"]
[SourceQuality "1"]
[TimeControl "40/5400+30:1800+30"]

1. e4 {[%emt 0:00:03]} c6 {[%emt 0:00:01]} 2. d4 {[%emt 0:00:06]} d5 {[%emt 0:00:01]} 3. e5 {[%emt 0:00:05]} c5 {[%emt 0:00:06]} 4. Nf3 {[%emt 0:00:44]} Nc6 {[%emt 0:00:17]} 5. c3 {[%emt 0:00:07]} Bg4 {[%emt 0:00:05]} 6. Be2 {[%emt 0:00:09]} cxd4 {[%emt 0:00:07]} 7. cxd4 {[%emt 0:00:10]} e6 {[%emt 0:00:40]} 8. O-O {[%emt 0:00:08]} Nge7 {[%emt 0:00:11]} 9. Nc3 {[%emt 0:00:23]} Nf5 {[%emt 0:00:49]} 10. Be3 {[%emt 0:02:06]} Be7 {[%emt 0:04:59]} 11. h3 {[%emt 0:03:50]} Bxf3 {[%emt 0:00:55]} 12. Bxf3 {[%emt 0:00:10]} O-O {[%emt 0:06:37]} 13. Ne2 {[%emt 0:07:57]} f6 {[%emt 0:12:13]} 14. Nf4 {[%emt 0:03:05]} Qd7 {[%emt 0:03:22]} 15. exf6 {[%emt 0:06:27]} Bxf6 {[%emt 0:03:01]} 16. Ne2 {[%emt 0:01:15]} Rac8 {[%emt 0:09:49]} 17. Qd2 {[%emt 0:02:06]} b6 {[%emt 0:05:55]} 18. Rac1 {[%emt 0:01:41]} Na5 {[%emt 0:02:40]} 19. b3 {[%emt 0:00:08]} Nb7 {[%emt 0:00:26]} 20. Rxc8 {[%emt 0:02:31]} Rxc8 {[%emt 0:00:02]} 21. Rc1 {[%emt 0:00:13]} Nbd6 {[%emt 0:05:18]} 22. a4 {[%emt 0:03:21]} g6 {[%emt 0:03:54]} 23. g4 {[%emt 0:05:15]} Ne7 {[%emt 0:07:56]} 24. Nc3 {[%emt 0:05:51]} Nc6 {[%emt 0:04:27]} 25. Be2 {[%emt 0:05:46]} Na5 {[%emt 0:02:16]} 26. Qc2 {[%emt 0:07:35]} Qg7 {[%emt 0:02:25]} 27. b4 {[%emt 0:06:55]} Nc6 {[%emt 0:02:26]} 28. Qb3 {[%emt 0:02:23]} Nxd4 {[%emt 0:00:52]} 29. Bxd4 {[%emt 0:00:24]} Bxd4 {[%emt 0:00:38]} 30. Na2 {[%emt 0:00:20]} Rf8 {[%emt 0:01:26]} 31. Rf1 {[%emt 0:00:50]} Qe5 {[%emt 0:02:49]} 32. Bd1 {[%emt 0:00:09]} Ne4 {[%emt 0:00:27]} 0-1

[Event "Niedersachsen-ch B 2024"]
[Site "Verden Aller"]
[Date "2024.01.06"]
[Round "5.31"]
[White "Rose, Simeon"]
[Black "Wildner, Jens Martin"]
[Result "1-0"]
[ECO "B12"]
[WhiteElo "1368"]
[BlackElo "1634"]
[Annotator "NA RC"]
[PlyCount "89"]
[EventDate "2024.01.01"]
[EventType "swiss"]
[EventCountry "GER"]
[SourceTitle "playchess.com"]
[Source "ChessBase"]
[SourceQuality "1"]
[TimeControl "40/5400+30:1800+30"]

1. e4 {[%emt 0:00:02]} c6 {[%emt 0:00:05]} 2. d4 {[%emt 0:00:15]} d5 {[%emt 0:00:05]} 3. e5 {[%emt 0:00:58]} Bf5 {[%emt 0:00:05]} 4. Bd3 {[%emt 0:01:18]} Bxd3 {[%emt 0:00:12]} 5. Qxd3 {[%emt 0:00:07]} e6 {[%emt 0:00:02]} 6. f4 {[%emt 0:00:36]} Ne7 {[%emt 0:02:49]} 7. Nf3 {[%emt 0:00:23]} Nf5 {[%emt 0:00:35]} 8. g4 {[%emt 0:04:45]} Ne7 {[%emt 0:38:45]} 9. Be3 {[%emt 0:15:05]} Qb6 {[%emt 0:09:15]} 10. Nbd2 {[%emt 0:20:40]} Na6 {[%emt 0:00:31]} 11. Ke2 {[%emt 0:07:06]} c5 {[%emt 0:12:32]} 12. dxc5 {[%emt 0:11:47]} Nxc5 {[%emt 0:00:14]} 13. Qc3 {[%emt 0:11:30]} Nc6 {[%emt 0:06:45]} 14. a4 {[%emt 0:03:22]} Qb4 {[%emt 0:01:41]} 15. Qxb4 {[%emt 0:04:52]} Nxb4 {[%emt 0:00:04]} 16. Nd4 {[%emt 0:00:07]} a6 {[%emt 0:00:40]} 17. c3 {[%emt 0:01:20]} Nc6 {[%emt 0:00:10]} 18. Nxc6 {[%emt 0:00:44]} bxc6 {[%emt 0:00:05]} 19. b4 {[%emt 0:00:09]} Nd7 {[%emt 0:00:48]} 20. Nb3 {[%emt 0:00:51]} Be7 {[%emt 0:05:14]} 21. Rhf1 {[%emt 0:03:19]} O-O {[%emt 0:00:24]} 22. Nd4 {[%emt 0:01:35]} c5 {[%emt 0:01:00]} 23. Nc6 {[%emt 0:00:41]} Rfe8 {[%emt 0:01:31]} 24. Nxe7+ {[%emt 0:01:00]} Rxe7 {[%emt 0:00:03]} 25. b5 {[%emt 0:01:29]} c4 {[%emt 0:02:04]} 26. b6 {[%emt 0:01:15]} f6 {[%emt 0:00:49]} 27. Rab1 {[%emt 0:01:42]} fxe5 {[%emt 0:00:27]} 28. b7 {[%emt 0:00:58]} Rb8 {[%emt 0:03:13]} 29. Ba7 {[%emt 0:01:30]} Ree8 {[%emt 0:00:04]} 30. Bxb8 {[%emt 0:01:00]} Rxb8 {[%emt 0:00:05]} 31. f5 {[%emt 0:02:29]} Nc5 {[%emt 0:00:29]} 32. fxe6 {[%emt 0:01:13]} Nxe6 {[%emt 0:00:15]} 33. Rf5 {[%emt 0:01:30]} e4 {[%emt 0:01:10]} 34. Kd2 {[%emt 0:00:51]} Nc5 {[%emt 0:03:50]} 35. Rxd5 {[%emt 0:00:32]} Nb3+ {[%emt 0:00:05]} 36. Ke3 {[%emt 0:00:48]} Rxb7 {[%emt 0:00:26]} 37. Rf1 {[%emt 0:00:10]} Rb8 {[%emt 0:00:27]} 38. Kxe4 {[%emt 0:00:56]} Re8+ {[%emt 0:00:17]} 39. Kf3 {[%emt 0:00:30]} Rf8+ {[%emt 0:01:23]} 40. Kg2 {[%emt 0:00:08]} Rxf1 {[%emt 0:00:23]} 41. Kxf1 {[%emt 0:30:06]} Kf7 {[%emt 0:30:07]} 42. Rd7+ {[%emt 0:00:00]} Kf8 {[%emt 0:00:00]} 43. Rc7 {[%emt 0:00:00]} Nd2+ {[%emt 0:00:00]} 44. Ke2 {[%emt 0:00:00]} Ne4 {[%emt 0:00:00]} 45. Rxc4 {[%emt 0:00:00]} 1-0

[Event "Niedersachsen-ch B 2024"]
[Site "Verden Aller"]
[Date "2024.01.06"]
[Round "5.32"]
[White "Rinke, Alexander"]
[Black "Heckl, Philipp"]
[Result "1/2-1/2"]
[ECO "B30"]
[WhiteElo "1296"]
[BlackElo "1580"]
[Annotator "NA RC"]
[PlyCount "92"]
[EventDate "2024.01.01"]
[EventType "swiss"]
[EventCountry "GER"]
[SourceTitle "playchess.com"]
[Source "ChessBase"]
[SourceQuality "1"]
[TimeControl "40/5400+30:1800+30"]

1. e4 {[%emt 0:00:02]} c5 {[%emt 0:01:10]} 2. Nf3 {[%emt 0:00:09]} Nc6 {[%emt 0:04:04]} 3. Bb5 {[%emt 0:00:24]} a6 {[%emt 0:00:34]} 4. Bxc6 {[%emt 0:00:24]} dxc6 {[%emt 0:00:34]} 5. O-O {[%emt 0:00:32]} Bg4 {[%emt 0:00:35]} 6. d3 {[%emt 0:06:01]} e6 {[%emt 0:06:00]} 7. Be3 {[%emt 0:05:34]} Nf6 {[%emt 0:03:27]} 8. Nbd2 {[%emt 0:05:11]} Be7 {[%emt 0:04:04]} 9. Qe2 {[%emt 0:14:08]} h6 {[%emt 0:06:57]} 10. c3 {[%emt 0:13:21]} O-O {[%emt 0:09:59]} 11. d4 {[%emt 0:06:12]} cxd4 {[%emt 0:00:46]} 12. cxd4 {[%emt 0:02:45]} Bh5 {[%emt 0:03:48]} 13. Bf4 {[%emt 0:06:31]} c5 {[%emt 0:06:29]} 14. Be3 {[%emt 0:08:17]} cxd4 {[%emt 0:09:29]} 15. Bxd4 {[%emt 0:02:28]} Rc8 {[%emt 0:01:51]} 16. Qe3 {[%emt 0:04:51]} Qa5 {[%emt 0:12:47]} 17. Nb3 {[%emt 0:05:23]} Qb5 {[%emt 0:05:13]} 18. Rac1 {[%emt 0:02:46]} Nd7 {[%emt 0:03:55]} 19. Rc3 {[%emt 0:03:47]} Bxf3 {[%emt 0:04:41]} 20. Qxf3 {[%emt 0:00:10]} e5 {[%emt 0:00:50]} 21. Rfc1 {[%emt 0:03:26]} Rxc3 {[%emt 0:01:27]} 22. Bxc3 {[%emt 0:00:12]} Bg5 {[%emt 0:01:27]} 23. Rd1 {[%emt 0:01:11]} Nb8 {[%emt 0:02:12]} 24. Rd5 {[%emt 0:00:47]} Qa4 {[%emt 0:01:18]} 25. Ra5 {[%emt 0:00:29]} Qc4 {[%emt 0:00:56]} 26. Rxe5 {[%emt 0:01:24]} Nc6 {[%emt 0:01:53]} 27. Rd5 {[%emt 0:01:55]} Re8 {[%emt 0:02:44]} 28. Nc5 {[%emt 0:02:42]} Qxa2 {[%emt 0:00:37]} 29. Nxb7 {[%emt 0:00:14]} Qb1+ {[%emt 0:00:41]} 30. Qd1 {[%emt 0:01:05]} Qxd1+ {[%emt 0:00:50]} 31. Rxd1 {[%emt 0:00:09]} Rxe4 {[%emt 0:00:30]} 32. Nc5 {[%emt 0:00:15]} Rc4 {[%emt 0:01:46]} 33. Nxa6 {[%emt 0:00:09]} Ne7 {[%emt 0:01:14]} 34. Nb4 {[%emt 0:00:35]} h5 {[%emt 0:00:56]} 35. g3 {[%emt 0:00:44]} h4 {[%emt 0:00:17]} 36. Rd4 {[%emt 0:00:27]} Rc8 {[%emt 0:00:52]} 37. Rg4 {[%emt 0:00:59]} Bc1 {[%emt 0:01:10]} 38. Rxg7+ {[%emt 0:00:57]} Kf8 {[%emt 0:00:16]} 39. Rh7 {[%emt 0:00:23]} Ng6 {[%emt 0:00:35]} 40. gxh4 {[%emt 0:00:31]} Rc5 {[%emt 0:00:51]} 41. h5 {[%emt 0:30:41]} Nf4 {[%emt 0:30:36]} 42. Rg7 {[%emt 0:01:42]} Ne2+ {[%emt 0:00:00]} 43. Kf1 {[%emt 0:00:00]} Nxc3 {[%emt 0:00:00]} 44. h6 {[%emt 0:00:00]} Bxb2 {[%emt 0:00:00]} 45. Nd3 {[%emt 0:00:00]} Rh5 {[%emt 0:00:00]} 46. Nxb2 {[%emt 0:00:00]} Rxh2 {[%emt 0:00:00]} 1/2-1/2

[Event "Niedersachsen-ch B 2024"]
[Site "Verden Aller"]
[Date "2024.01.06"]
[Round "5.36"]
[White "Tenninger, Joerg"]
[Black "Schiel, Lucas"]
[Result "0-1"]
[ECO "A32"]
[WhiteElo "1508"]
[BlackElo "1312"]
[Annotator "NA RC"]
[PlyCount "52"]
[EventDate "2024.01.01"]
[EventType "swiss"]
[EventCountry "GER"]
[SourceTitle "playchess.com"]
[Source "ChessBase"]
[SourceQuality "1"]
[TimeControl "40/5400+30:1800+30"]

1. d4 {[%emt 0:00:03]} Nf6 {[%emt 0:00:04]} 2. c4 {[%emt 0:00:07]} c5 {[%emt 0:00:05]} 3. Nf3 {[%emt 0:00:20]} e6 {[%emt 0:00:21]} 4. a3 {[%emt 0:01:31]} cxd4 {[%emt 0:02:54]} 5. Nxd4 {[%emt 0:01:12]} Nc6 {[%emt 0:00:27]} 6. Nf3 {[%emt 0:01:33]} a5 {[%emt 0:02:21]} 7. Nc3 {[%emt 0:01:20]} Be7 {[%emt 0:02:53]} 8. Bf4 {[%emt 0:00:50]} d6 {[%emt 0:01:14]} 9. Qd3 {[%emt 0:07:35]} Qb6 {[%emt 0:10:28]} 10. Na4 {[%emt 0:02:39]} Qd8 {[%emt 0:09:32]} 11. Rd1 {[%emt 0:00:59]} e5 {[%emt 0:01:39]} 12. Be3 {[%emt 0:16:43]} e4 {[%emt 0:01:14]} 13. Qb3 {[%emt 0:00:38]} exf3 {[%emt 0:02:50]} 14. exf3 {[%emt 0:00:01]} Be6 {[%emt 0:02:56]} 15. Qxb7 {[%emt 0:04:40]} Rb8 {[%emt 0:09:29]} 16. Qxc6+ {[%emt 0:01:55]} Bd7 {[%emt 0:00:06]} 17. Qa6 {[%emt 0:06:51]} Bxa4 {[%emt 0:01:52]} 18. Rd2 {[%emt 0:00:00]} Qc7 {[%emt 0:03:43]} 19. Qa7 {[%emt 0:05:11]} Qxa7 {[%emt 0:02:18]} 20. Bxa7 {[%emt 0:00:09]} Rb7 {[%emt 0:00:05]} 21. Bd4 {[%emt 0:00:20]} O-O {[%emt 0:00:21]} 22. Bc3 {[%emt 0:00:32]} Nd7 {[%emt 0:01:26]} 23. Bxa5 {[%emt 0:01:50]} Bg5 {[%emt 0:02:06]} 24. Re2 {[%emt 0:01:17]} Nc5 {[%emt 0:01:38]} 25. Rd2 {[%emt 0:09:22]} Re8+ {[%emt 0:02:31]} 26. Be2 {[%emt 0:00:11]} Bxd2+ {[%emt 0:00:31]} 0-1

[Event "Niedersachsen-ch B 2024"]
[Site "Verden Aller"]
[Date "2024.01.06"]
[Round "5.37"]
[White "Steven, Matthias"]
[Black "Oblender, Rudi"]
[Result "1/2-1/2"]
[ECO "C72"]
[WhiteElo "1284"]
[BlackElo "1511"]
[Annotator "NA RC"]
[PlyCount "62"]
[EventDate "2024.01.01"]
[EventType "swiss"]
[EventCountry "GER"]
[SourceTitle "playchess.com"]
[Source "ChessBase"]
[SourceQuality "1"]
[TimeControl "40/5400+30:1800+30"]

1. e4 {[%emt 0:00:06]} e5 {[%emt 0:00:17]} 2. Nf3 {[%emt 0:00:09]} Nc6 {[%emt 0:00:04]} 3. Bb5 {[%emt 0:00:10]} d6 {[%emt 0:00:22]} 4. O-O {[%emt 0:01:14]} Bg4 {[%emt 0:00:25]} 5. c3 {[%emt 0:02:04]} a6 {[%emt 0:00:15]} 6. Ba4 {[%emt 0:00:08]} b5 {[%emt 0:00:16]} 7. Bc2 {[%emt 0:00:23]} Nf6 {[%emt 0:01:20]} 8. h3 {[%emt 0:07:15]} Bh5 {[%emt 0:00:14]} 9. d3 {[%emt 0:02:01]} h6 {[%emt 0:01:30]} 10. Be3 {[%emt 0:01:19]} g5 {[%emt 0:02:28]} 11. g4 {[%emt 0:02:38]} Bg6 {[%emt 0:31:33]} 12. Nbd2 {[%emt 0:05:06]} Be7 {[%emt 0:01:14]} 13. a4 {[%emt 0:10:17]} Kf8 {[%emt 0:04:58]} 14. Nh2 {[%emt 0:11:52]} h5 {[%emt 0:06:53]} 15. Bxg5 {[%emt 0:06:15]} hxg4 {[%emt 0:00:45]} 16. Bxf6 {[%emt 0:06:35]} Bxf6 {[%emt 0:00:49]} 17. hxg4 {[%emt 0:05:19]} Bg5 {[%emt 0:02:07]} 18. Kg2 {[%emt 0:04:12]} Bf4 {[%emt 0:06:09]} 19. Nhf3 {[%emt 0:04:14]} Qd7 {[%emt 0:02:51]} 20. Rg1 {[%emt 0:12:55]} Qxg4+ {[%emt 0:00:47]} 21. Kf1 {[%emt 0:00:08]} Qh3+ {[%emt 0:01:58]} 22. Ke2 {[%emt 0:00:35]} Bxd2 {[%emt 0:00:38]} 23. Qxd2 {[%emt 0:04:26]} b4 {[%emt 0:07:19]} 24. Rg3 {[%emt 0:05:28]} Qe6 {[%emt 0:00:30]} 25. c4 {[%emt 0:01:37]} Bh5 {[%emt 0:00:32]} 26. Rag1 {[%emt 0:02:30]} Bxf3+ {[%emt 0:00:25]} 27. Kxf3 {[%emt 0:00:06]} Nd4+ {[%emt 0:00:43]} 28. Kg2 {[%emt 0:00:10]} Nxc2 {[%emt 0:08:50]} 29. Qxc2 {[%emt 0:00:11]} Ke7 {[%emt 0:00:58]} 30. Qd2 {[%emt 0:00:48]} Rag8 {[%emt 0:00:24]} 31. Kf3 {[%emt 0:00:52]} Qf6+ {[%emt 0:05:29]} 1/2-1/2

[Event "Niedersachsen-ch B 2024"]
[Site "Verden Aller"]
[Date "2024.01.06"]
[Round "6.1"]
[White "Richter, Silas"]
[Black "Rossberg, Jonathan"]
[Result "1/2-1/2"]
[ECO "B43"]
[WhiteElo "1614"]
[BlackElo "1818"]
[Annotator "NA RC"]
[PlyCount "124"]
[EventDate "2024.01.01"]
[EventType "swiss"]
[EventCountry "GER"]
[SourceTitle "playchess.com"]
[Source "ChessBase"]
[SourceQuality "1"]
[TimeControl "40/5400+30:1800+30"]

1. e4 {[%emt 0:00:02]} c5 {[%emt 0:00:06]} 2. Nf3 {[%emt 0:00:03]} e6 {[%emt 0:00:19]} 3. d4 {[%emt 0:00:04]} cxd4 {[%emt 0:00:04]} 4. Nxd4 {[%emt 0:00:02]} a6 {[%emt 0:00:05]} 5. Nc3 {[%emt 0:00:04]} Qc7 {[%emt 0:00:03]} 6. Be2 {[%emt 0:00:24]} Nf6 {[%emt 0:00:51]} 7. f3 {[%emt 0:01:18]} b5 {[%emt 0:05:05]} 8. Be3 {[%emt 0:01:18]} Bb7 {[%emt 0:05:08]} 9. Qd2 {[%emt 0:01:26]} d5 {[%emt 0:02:39]} 10. exd5 {[%emt 0:07:39]} Nxd5 {[%emt 0:00:30]} 11. Nxd5 {[%emt 0:00:12]} Bxd5 {[%emt 0:00:49]} 12. O-O {[%emt 0:00:48]} Bd6 {[%emt 0:04:30]} 13. f4 {[%emt 0:01:35]} O-O {[%emt 0:06:33]} 14. h3 {[%emt 0:01:44]} Nc6 {[%emt 0:03:43]} 15. f5 {[%emt 0:02:30]} Nxd4 {[%emt 0:02:00]} 16. Bxd4 {[%emt 0:02:17]} f6 {[%emt 0:10:51]} 17. fxe6 {[%emt 0:07:06]} Bxe6 {[%emt 0:05:37]} 18. Bf3 {[%emt 0:00:16]} Rad8 {[%emt 0:05:33]} 19. Qe3 {[%emt 0:00:19]} Be5 {[%emt 0:05:52]} 20. Bxe5 {[%emt 0:04:08]} Qxe5 {[%emt 0:00:52]} 21. Qxe5 {[%emt 0:00:16]} fxe5 {[%emt 0:00:09]} 22. Rae1 {[%emt 0:00:33]} Bc4 {[%emt 0:01:30]} 23. Rf2 {[%emt 0:00:59]} Rfe8 {[%emt 0:05:47]} 24. Bb7 {[%emt 0:02:45]} Rd6 {[%emt 0:03:57]} 25. Rf5 {[%emt 0:00:19]} Rd2 {[%emt 0:03:32]} 26. Bxa6 {[%emt 0:09:30]} Rxc2 {[%emt 0:10:32]} 27. Rfxe5 {[%emt 0:04:19]} Ra8 {[%emt 0:05:04]} 28. Bxb5 {[%emt 0:00:45]} Bxb5 {[%emt 0:00:41]} 29. Rxb5 {[%emt 0:00:12]} Rxa2 {[%emt 0:00:17]} 30. Rb8+ {[%emt 0:00:25]} Kf7 {[%emt 0:00:06]} 31. Rf1+ {[%emt 0:00:03]} Kg6 {[%emt 0:04:48]} 32. Rf2 {[%emt 0:00:06]} Ra1+ {[%emt 0:00:11]} 33. Rf1 {[%emt 0:00:06]} Ra2 {[%emt 0:00:04]} 34. Rb6+ {[%emt 0:00:22]} Kh5 {[%emt 0:01:51]} 35. Rf5+ {[%emt 0:04:44]} g5 {[%emt 0:00:21]} 36. Rfb5 {[%emt 0:00:04]} Ra1+ {[%emt 0:02:01]} 37. Kh2 {[%emt 0:00:05]} Rf1 {[%emt 0:01:37]} 38. Rc5 {[%emt 0:00:49]} Rh1+ {[%emt 0:03:10]} 39. Kxh1 {[%emt 0:00:05]} Rxc5 {[%emt 0:00:05]} 40. Kg1 {[%emt 0:00:48]} g4 {[%emt 0:01:37]} 41. Kh2 {[%emt 0:31:09]} gxh3 {[%emt 0:02:06]} 42. Kxh3 {[%emt 0:00:00]} Kg5 {[%emt 0:00:15]} 43. Kg3 {[%emt 0:00:00]} Rc1 {[%emt 0:00:56]} 44. Kf3 {[%emt 0:00:00]} Rf1+ {[%emt 0:03:31]} 45. Kg3 {[%emt 0:00:00]} Rd1 {[%emt 0:00:57]} 46. b4 {[%emt 0:00:00]} Rd3+ {[%emt 0:00:20]} 47. Kh2 {[%emt 0:00:00]} Rb3 {[%emt 0:00:24]} 48. b5 {[%emt 0:00:00]} h6 {[%emt 0:01:56]} 49. Rb8 {[%emt 0:00:00]} Kg6 {[%emt 0:00:18]} 50. b6 {[%emt 0:00:00]} Kg7 {[%emt 0:00:21]} 51. b7 {[%emt 0:00:00]} Kh7 {[%emt 0:00:58]} 52. Kg1 {[%emt 0:00:00]} Rb2 {[%emt 0:00:23]} 53. Kf1 {[%emt 0:00:00]} Kg7 {[%emt 0:00:36]} 54. g4 {[%emt 0:00:00]} Kh7 {[%emt 0:00:47]} 55. Ke1 {[%emt 0:00:00]} Kg7 {[%emt 0:01:08]} 56. Kd1 {[%emt 0:00:00]} Kh7 {[%emt 0:00:50]} 57. Kc1 {[%emt 0:00:00]} Rb6 {[%emt 0:01:06]} 58. Kd2 {[%emt 0:00:00]} Kg7 {[%emt 0:01:24]} 59. Ke3 {[%emt 0:00:00]} Rb1 {[%emt 0:00:29]} 60. Kd4 {[%emt 0:00:00]} Rd1+ {[%emt 0:00:36]} 61. Ke3 {[%emt 0:00:00]} Re1+ {[%emt 0:01:06]} 62. Kd3 {[%emt 0:00:00]} Rb1 {[%emt 0:22:33]} 1/2-1/2

[Event "Niedersachsen-ch B 2024"]
[Site "Verden Aller"]
[Date "2024.01.06"]
[Round "6.2"]
[White "Schoene, Finn"]
[Black "Goes, Carsten"]
[Result "1/2-1/2"]
[ECO "D00"]
[WhiteElo "1626"]
[BlackElo "1676"]
[Annotator "NA RC"]
[PlyCount "59"]
[EventDate "2024.01.01"]
[EventType "swiss"]
[EventCountry "GER"]
[SourceTitle "playchess.com"]
[Source "ChessBase"]
[SourceQuality "1"]
[TimeControl "40/5400+30:1800+30"]

1. d4 {[%emt 0:00:02]} d5 {[%emt 0:00:06]} 2. Nc3 {[%emt 0:00:01]} Nf6 {[%emt 0:00:12]} 3. Bf4 {[%emt 0:00:06]} a6 {[%emt 0:00:12]} 4. e3 {[%emt 0:00:07]} e6 {[%emt 0:00:32]} 5. Nf3 {[%emt 0:00:05]} c5 {[%emt 0:02:44]} 6. dxc5 {[%emt 0:00:04]} Bxc5 {[%emt 0:00:45]} 7. Bd3 {[%emt 0:00:03]} Nbd7 {[%emt 0:03:01]} 8. g4 {[%emt 0:02:36]} b5 {[%emt 0:02:54]} 9. Ne5 {[%emt 0:02:37]} Bb7 {[%emt 0:05:47]} 10. g5 {[%emt 0:14:48]} Ne4 {[%emt 0:04:01]} 11. Bxe4 {[%emt 0:01:55]} Nxe5 {[%emt 0:01:07]} 12. Bxe5 {[%emt 0:00:58]} dxe4 {[%emt 0:00:33]} 13. Bxg7 {[%emt 0:00:44]} Rg8 {[%emt 0:02:27]} 14. Bf6 {[%emt 0:02:56]} Be7 {[%emt 0:06:51]} 15. Qxd8+ {[%emt 0:03:15]} Rxd8 {[%emt 0:03:19]} 16. Bxe7 {[%emt 0:00:06]} Kxe7 {[%emt 1:03:59]} 17. h4 {[%emt 0:00:02]} f6 {[%emt 0:00:00]} 18. gxf6+ {[%emt 0:03:46]} Kxf6 {[%emt 0:00:00]} 19. Ke2 {[%emt 0:00:21]} b4 {[%emt 0:00:00]} 20. Na4 {[%emt 0:03:21]} Bc6 {[%emt 0:00:00]} 21. Nc5 {[%emt 0:02:52]} Bb5+ {[%emt 0:00:00]} 22. Ke1 {[%emt 0:00:04]} Rc8 {[%emt 0:00:00]} 23. Nxe4+ {[%emt 0:02:04]} Ke5 {[%emt 0:00:00]} 24. Ng5 {[%emt 0:01:51]} Rxc2 {[%emt 0:00:00]} 25. Rg1 {[%emt 0:03:13]} Re2+ {[%emt 0:00:00]} 26. Kd1 {[%emt 0:00:11]} Rd8+ {[%emt 0:00:00]} 27. Kc1 {[%emt 0:00:08]} Rc8+ {[%emt 0:00:00]} 28. Kd1 {[%emt 0:00:04]} Rd8+ {[%emt 0:00:00]} 29. Kc1 {[%emt 0:00:07]} Rc8+ {[%emt 0:00:00]} 30. Kd1 {[%emt 0:00:07]} 1/2-1/2

[Event "Niedersachsen-ch B 2024"]
[Site "Verden Aller"]
[Date "2024.01.06"]
[Round "6.3"]
[White "Silber, Stefanie"]
[Black "Freise, Linus"]
[Result "1-0"]
[ECO "A35"]
[WhiteElo "1581"]
[BlackElo "1480"]
[Annotator "NA RC"]
[PlyCount "70"]
[EventDate "2024.01.01"]
[EventType "swiss"]
[EventCountry "GER"]
[SourceTitle "playchess.com"]
[Source "ChessBase"]
[SourceQuality "1"]
[TimeControl "40/5400+30:1800+30"]

1. c4 {[%emt 0:00:03]} c5 {[%emt 0:00:06]} 2. Nf3 {[%emt 0:00:08]} Nc6 {[%emt 0:00:07]} 3. Nc3 {[%emt 0:00:06]} g6 {[%emt 0:00:07]} 4. e3 {[%emt 0:00:12]} Bg7 {[%emt 0:00:13]} 5. d4 {[%emt 0:00:31]} cxd4 {[%emt 0:01:01]} 6. exd4 {[%emt 0:00:41]} d6 {[%emt 0:02:48]} 7. Be2 {[%emt 0:00:17]} Bd7 {[%emt 0:05:48]} 8. O-O {[%emt 0:00:27]} e5 {[%emt 0:00:25]} 9. d5 {[%emt 0:01:35]} Nce7 {[%emt 0:02:22]} 10. Qb3 {[%emt 0:12:39]} b6 {[%emt 0:02:49]} 11. Re1 {[%emt 0:08:56]} f5 {[%emt 0:01:36]} 12. Qb4 {[%emt 0:06:06]} e4 {[%emt 0:07:32]} 13. Ng5 {[%emt 0:06:56]} h6 {[%emt 0:00:24]} 14. Nh3 {[%emt 0:11:37]} Be5 {[%emt 0:02:40]} 15. Bf4 {[%emt 0:12:09]} Nf6 {[%emt 0:01:15]} 16. f3 {[%emt 0:04:39]} Bd4+ {[%emt 0:01:48]} 17. Nf2 {[%emt 0:01:16]} Bc5 {[%emt 0:01:22]} 18. Qb3 {[%emt 0:00:05]} g5 {[%emt 0:03:03]} 19. Bc1 {[%emt 0:00:05]} e3 {[%emt 0:02:13]} 20. Nd3 {[%emt 0:01:24]} f4 {[%emt 0:00:23]} 21. Ne4 {[%emt 0:04:00]} Nf5 {[%emt 0:02:52]} 22. Rb1 {[%emt 0:09:32]} Qe7 {[%emt 0:01:42]} 23. Nexc5 {[%emt 0:02:55]} dxc5 {[%emt 0:01:17]} 24. Qc3 {[%emt 0:01:16]} Nd4 {[%emt 0:00:25]} 25. b4 {[%emt 0:00:37]} g4 {[%emt 0:08:39]} 26. Nxf4 {[%emt 0:02:33]} gxf3 {[%emt 0:00:10]} 27. Bxf3 {[%emt 0:01:35]} Nxf3+ {[%emt 0:00:43]} 28. gxf3 {[%emt 0:00:27]} Qg7+ {[%emt 0:50:40]} 29. Kh1 {[%emt 0:00:21]} Rg8 {[%emt 0:00:00]} 30. Bxe3 {[%emt 0:02:08]} cxb4 {[%emt 0:00:00]} 31. Bxb6+ {[%emt 0:01:35]} Kf7 {[%emt 0:00:00]} 32. Qxb4 {[%emt 0:00:44]} Rae8 {[%emt 0:00:00]} 33. Bd4 {[%emt 0:01:14]} a5 {[%emt 0:00:00]} 34. Qd6 {[%emt 0:00:26]} Bf5 {[%emt 0:00:00]} 35. Rxe8 {[%emt 0:02:01]} Nxe8 {[%emt 0:00:00]} 1-0

[Event "Niedersachsen-ch B 2024"]
[Site "Verden Aller"]
[Date "2024.01.06"]
[Round "6.4"]
[White "Rademacher, Bengt"]
[Black "Kraeuter, Paavo Alexander"]
[Result "0-1"]
[ECO "C01"]
[WhiteElo "1702"]
[BlackElo "1832"]
[Annotator "NA RC"]
[PlyCount "48"]
[EventDate "2024.01.01"]
[EventType "swiss"]
[EventCountry "GER"]
[SourceTitle "playchess.com"]
[Source "ChessBase"]
[SourceQuality "1"]
[TimeControl "40/5400+30:1800+30"]

1. e4 {[%emt 0:00:03]} e6 {[%emt 0:00:04]} 2. d4 {[%emt 0:00:21]} d5 {[%emt 0:00:05]} 3. exd5 {[%emt 0:00:47]} exd5 {[%emt 0:00:08]} 4. Nf3 {[%emt 0:00:16]} Nf6 {[%emt 0:00:05]} 5. c4 {[%emt 0:01:08]} Bb4+ {[%emt 0:00:07]} 6. Nbd2 {[%emt 0:01:47]} O-O {[%emt 0:00:45]} 7. Be2 {[%emt 0:00:35]} Bg4 {[%emt 0:01:36]} 8. O-O {[%emt 0:07:33]} dxc4 {[%emt 0:05:48]} 9. Nxc4 {[%emt 0:04:43]} h6 {[%emt 0:00:15]} 10. Qb3 {[%emt 0:02:08]} Nc6 {[%emt 0:01:41]} 11. Nce5 {[%emt 0:08:36]} Nxd4 {[%emt 0:05:35]} 12. Nxd4 {[%emt 0:05:18]} Qxd4 {[%emt 0:00:23]} 13. Nxg4 {[%emt 0:04:27]} Nxg4 {[%emt 0:00:43]} 14. Bxg4 {[%emt 0:11:31]} Qxg4 {[%emt 0:00:12]} 15. a3 {[%emt 0:00:26]} Bd6 {[%emt 0:01:03]} 16. Qxb7 {[%emt 0:03:51]} Rfb8 {[%emt 0:06:00]} 17. Qd5 {[%emt 0:01:28]} Rd8 {[%emt 0:01:13]} 18. Qa5 {[%emt 0:02:18]} Qd4 {[%emt 0:08:12]} 19. Rb1 {[%emt 0:02:31]} c5 {[%emt 0:08:33]} 20. Be3 {[%emt 0:01:36]} Qe5 {[%emt 0:01:17]} 21. g3 {[%emt 0:00:37]} c4 {[%emt 0:01:23]} 22. Bd2 {[%emt 0:07:02]} Bc7 {[%emt 0:05:09]} 23. Qc3 {[%emt 0:01:43]} Rd3 {[%emt 0:03:11]} 24. Rfe1 {[%emt 0:04:21]} Qd5 {[%emt 0:02:54]} 0-1